bitfinex/quotes_SOLUSD_20260309
["timestamp","ask_amount","ask_price","bid_price","bid_amount"]
[1773041481122,0.90701337,82.979,82.951,0.93319419]
[1773041482216,0.90701337,82.979,82.952,12.05516443]
[1773041482424,0.90701337,82.979,82.953,0.93319419]
[1773041482625,0.90701337,82.979,82.952,12.05516443]
[1773041483025,0.90701337,82.978,82.952,12.05516443]
[1773041483724,0.90701337,82.978,82.948,12.05573449]
[1773041484824,0.90701337,82.976,82.948,12.05573449]
[1773041485325,0.90701337,82.976,82.948,12.98892868]
[1773041485818,0.90701337,82.976,82.951,0.93319419]
[1773041486720,0.90701337,82.976,82.951,12.05530976]
[1773041487104,0.90701337,82.983,82.952,0.93319419]
[1773041488037,0.90701337,82.983,82.96,5.39994638]
[1773041488205,0.90701337,82.979,82.946,12.05603388]
[1773041488517,0.90701337,82.969,82.942,12.05658503]
[1773041488924,0.90701337,82.967,82.935,12.99082968]
[1773041490727,0.90701337,82.967,82.936,0.93319419]
[1773041492229,0.90701337,82.949,82.922,0.93319419]
[1773041493120,0.83746251,82.959,82.922,0.93319419]
[1773041493323,12.05313019,82.966,82.931,0.89342882]
[1773041493324,0.83746251,82.966,82.931,0.89342882]
[1773041494012,0.83746251,82.988,82.96,4.46675219]
[1773041494329,0.83746251,82.988,82.953,0.89342882]
[1773041497434,12.05008013,82.987,82.961,0.89342882]
[1773041497731,0.83746251,82.986,82.961,0.89342882]
[1773041499922,0.83746251,82.984,82.961,12.94715138]
[1773041500635,0.83746251,82.979,82.956,12.05452458]
[1773041500830,0.83746251,82.979,82.957,0.89342882]
[1773041501331,0.83746251,82.989,82.961,0.89342882]
[1773041501840,0.83746251,82.989,82.953,30.13754776]
[1773041501841,0.83746251,82.989,82.962,12.05371133]
[1773041502012,0.83746251,82.989,82.963,0.89342882]
[1773041502013,0.33746251,82.989,82.963,0.89342882]
[1773041503020,0.33746251,82.989,82.965,0.89342882]
[1773041503229,12.0489372,82.995,82.965,0.89342882]
[1773041503814,12.04837181,82.999,82.965,0.89342882]
[1773041504014,17.33348291,83.03,82.971,0.89342882]
[1773041504015,4.46675219,83.01,82.971,0.89342882]
[1773041504215,0.83746251,83.016,82.991,0.89342882]
[1773041505226,0.83746251,83.016,82.993,0.89342882]
[1773041505434,4.46675219,83.02,82.993,0.89342882]
[1773041505929,5.5042147,83.03,82.993,0.89342882]
[1773041506230,0.83746251,83.027,82.993,0.89342882]
[1773041506825,7.63811737,83.028,83.0,4.46675219]
[1773041507016,7.63811737,83.028,83.001,0.89342882]
[1773041507218,7.63811737,83.028,83.003,0.89342882]
[1773041507611,7.63811737,83.028,83.011,0.89342882]
[1773041508119,0.2,83.05,83.021,0.89342882]
[1773041508432,0.2,83.05,83.002,12.04790246]
[1773041508433,0.83746251,83.039,83.002,12.04790246]
[1773041508630,0.83746251,83.019,82.991,12.04949934]
[1773041508826,0.83746251,83.009,82.971,0.89342882]
[1773041509018,0.83746251,83.009,82.972,0.89342882]
[1773041509335,0.83746251,83.009,82.974,0.89342882]
[1773041511045,0.83746251,83.009,82.976,0.89342882]
[1773041512533,4.46675219,83.02,82.991,0.89342882]
[1773041512939,4.46675219,83.02,82.993,0.89342882]
[1773041513242,0.83746251,83.018,82.993,0.89342882]
[1773041513447,0.83746251,83.009,82.982,12.05080603]
[1773041513742,0.83746251,83.009,82.982,12.94423485]
[1773041513943,0.83746251,82.999,82.978,0.89342882]
[1773041514144,0.83746251,83.009,82.978,0.89342882]
[1773041514534,42.15902383,83.019,82.966,12.05313019]
[1773041514535,0.83746251,82.999,82.966,12.05313019]
[1773041514733,0.83746251,82.989,82.966,12.05313019]
[1773041515544,0.83746251,82.989,82.967,0.89342882]
[1773041517544,0.83746251,82.989,82.966,12.05313019]
[1773041518041,0.83746251,82.987,82.962,12.05370696]
[1773041518534,0.83746251,82.987,82.962,12.94713578]
[1773041518745,12.32621972,83.053,82.962,12.05370696]
[1773041518922,0.83746251,83.045,82.981,0.89342882]
[1773041519126,4.66675219,83.05,83.009,0.89342882]
[1773041519127,0.83746251,83.039,83.009,0.89342882]
[1773041519333,0.83746251,83.039,83.001,0.89342882]
[1773041519540,0.83746251,83.037,83.002,12.04790246]
[1773041519736,0.83746251,83.037,83.003,0.89342882]
[1773041520546,0.83746251,83.037,83.011,0.89342882]
[1773041520747,12.04203351,83.043,83.011,0.89342882]
[1773041520949,0.83746251,83.043,83.011,0.89342882]
[1773041521344,0.83746251,83.029,83.002,12.04790246]
[1773041521564,0.83746251,83.029,82.997,12.04862826]
[1773041521747,0.83746251,83.019,82.992,12.0492927]
[1773041522548,0.83746251,83.019,82.992,12.94272152]
[1773041522854,0.83746251,83.019,82.993,0.89342882]
[1773041524749,0.83746251,83.019,82.994,12.04906378]
[1773041526249,0.83746251,83.019,82.994,12.84866053]
[1773041527637,0.83746251,83.019,82.996,12.04877343]
[1773041528654,0.83746251,83.019,82.997,0.79959675]
[1773041529463,0.74067141,83.043,83.011,0.78662131]
[1773041529640,0.74067141,83.043,83.013,0.78662131]
[1773041529836,0.74067141,83.039,83.012,12.04645111]
[1773041530060,0.74067141,83.039,83.012,12.83307242]
[1773041530638,0.74067141,83.039,83.013,0.78662131]
[1773041531055,0.74067141,83.049,83.015,0.78662131]
[1773041531240,0.74067141,83.049,83.021,0.78662131]
[1773041533167,0.74067141,83.049,83.022,12.83162143]
[1773041533461,0.74067141,83.049,83.023,0.78662131]
[1773041534038,0.74067141,83.047,83.022,12.04500012]
[1773041534242,0.74067141,83.047,83.022,12.83162143]
[1773041534454,0.74067141,83.047,83.023,0.78662131]
[1773041535158,0.2,83.05,83.025,0.78662131]
[1773041536348,0.74067141,83.039,83.015,12.04601578]
[1773041536575,0.74067141,83.039,83.016,0.78662131]
[1773041536755,0.74067141,83.045,83.016,0.78662131]
[1773041537161,0.74067141,83.039,83.002,0.78662131]
[1773041537359,0.74067141,83.048,83.004,0.78662131]
[1773041537567,0.74067141,83.039,83.011,0.78662131]
[1773041537765,0.74067141,83.039,83.005,0.78662131]
[1773041540771,0.74067141,83.037,83.007,0.78662131]
[1773041541954,0.74067141,83.037,83.009,0.78662131]
[1773041542863,0.2,83.05,83.009,0.78662131]
[1773041543061,0.74067141,83.049,83.009,0.78662131]
[1773041543252,0.2,83.05,83.009,0.78662131]
[1773041543599,0.74067141,83.049,83.009,0.78662131]
[1773041543747,0.74067141,83.048,83.009,0.78662131]
[1773041544167,0.74067141,83.046,83.011,0.78662131]
[1773041545774,0.74067141,83.046,83.012,42.16257889]
[1773041545973,0.74067141,83.046,83.013,0.78662131]
[1773041546274,0.2,83.05,83.013,0.78662131]
[1773041546454,0.2,83.07,83.012,42.16257889]
[1773041546455,1e-08,83.07,83.016,0.78662131]
[1773041547353,1e-08,83.07,83.02,0.78662131]
[1773041547560,1e-08,83.07,83.021,0.78662131]
[1773041547760,1e-08,83.07,83.026,0.78662131]
[1773041548163,1.1832087,83.078,83.026,0.78662131]
[1773041548368,0.74067141,83.089,83.031,0.78662131]
[1773041548582,0.74067141,83.088,83.035,0.78662131]
[1773041549789,0.74067141,83.086,83.037,0.78662131]
[1773041551770,0.74067141,83.084,83.039,0.78662131]
[1773041553585,0.74067141,83.084,83.039,0.72574762]
[1773041553792,0.67238383,83.082,83.041,0.72574762]
[1773041556388,0.67238383,83.08,83.042,12.04209917]
[1773041556587,0.67238383,83.08,83.038,12.0426789]
[1773041556790,0.67238383,83.08,83.039,0.72574762]
[1773041557970,0.67238383,83.08,83.038,12.0426789]
[1773041558177,42.12756224,83.081,83.031,57.67160504]
[1773041558178,3.69383402,83.078,83.031,57.67160504]
[1773041558378,0.67238383,83.075,83.032,12.04354947]
[1773041559497,0.67238383,83.075,83.031,57.67160504]
[1773041560179,0.67238383,83.075,83.032,12.04354947]
[1773041560382,0.67238383,83.073,83.032,12.04354947]
[1773041560679,0.67238383,83.073,83.005,60.23686931]
[1773041560680,4.82477569,83.069,83.01,12.77247081]
[1773041560897,0.12866022,83.061,82.998,12.04841516]
[1773041561105,0.12866022,83.061,82.968,0.72574762]
[1773041561406,0.12866022,83.061,82.969,0.72574762]
[1773041562477,0.12866022,83.061,82.971,0.72574762]
[1773041563281,0.12866022,83.061,82.974,0.72574762]
[1773041564481,0.12866022,83.061,82.975,102.44049411]
[1773041564806,0.10908825,83.06,82.976,0.72574762]
[1773041565703,0.10433495,83.074,82.979,0.72574762]
[1773041566637,0.10433495,83.074,82.984,0.72574762]
[1773041568391,0.10433495,83.074,82.989,0.72574762]
[1773041571390,0.10433495,83.074,82.994,0.72574762]
[1773041571896,0.10433495,83.074,82.996,0.72574762]
[1773041573510,0.1040767,83.073,82.998,0.72574762]
[1773041575417,0.10400666,83.072,82.998,0.72574762]
[1773041575911,0.10400666,83.072,83.0,0.72574762]
[1773041575912,0.10397225,83.068,83.0,0.72574762]
[1773041577615,0.10393823,83.067,83.0,0.72574762]
[1773041578806,3.69383402,83.064,83.002,0.72574762]
[1773041579012,0.10387136,83.062,83.002,0.72574762]
[1773041580410,0.10387136,83.062,82.998,0.72574762]
[1773041580798,12.14307099,83.062,82.998,0.72574762]
[1773041581006,0.10380602,83.057,82.999,12.04833793]
[1773041581203,0.10380602,83.057,82.999,12.77408555]
[1773041581716,0.10380602,83.057,83.0,0.72574762]
[1773041583014,0.1037108,83.052,83.002,0.6964594]
[1773041585719,0.1037108,83.052,83.004,0.6964594]
[1773041589935,0.1037108,83.052,82.979,60.2559978]
[1773041589936,0.1037108,83.052,83.006,0.70050029]
[1773041592620,0.1037108,83.052,83.008,0.70050029]
[1773041593050,42.13669142,83.063,83.008,0.70050029]
[1773041593262,0.10338857,83.062,83.008,0.70050029]
[1773041594957,0.10338857,83.062,83.01,0.70050029]
[1773041596944,0.10338857,83.062,83.012,0.70050029]
[1773041599060,0.10338857,83.062,83.014,0.70050029]
[1773041601649,0.10338857,83.062,82.988,3.69383402]
[1773041601650,0.66634422,83.103,83.017,0.70050029]
[1773041601963,0.2,83.1,83.025,0.70050029]
[1773041602166,0.2,83.1,83.03,0.70050029]
[1773041602471,0.2,83.1,83.034,0.70050029]
[1773041603668,0.2,83.1,83.036,0.70050029]
[1773041603866,0.2,83.1,83.042,0.70050029]
[1773041605964,0.66624744,83.098,83.047,0.70050029]
[1773041608067,0.66620855,83.096,83.043,0.70050029]
[1773041608370,0.66620855,83.096,83.045,0.70050029]
[1773041609170,3.69383402,83.089,83.027,0.70050029]
[1773041609385,0.66619335,83.082,83.027,0.70050029]
[1773041610254,0.66617832,83.077,83.027,12.74477504]
[1773041610455,0.66617832,83.077,83.028,0.70050029]
[1773041612175,0.66614878,83.073,83.014,0.70050029]
[1773041612551,0.66614878,83.071,83.016,0.70050029]
[1773041613570,8.51860971,83.065,83.008,0.69130536]
[1773041613757,0.66610573,83.062,83.008,0.69130536]
[1773041614079,0.66610573,83.062,83.009,12.04688648]
[1773041615161,0.66609171,83.06,83.008,0.69130536]
[1773041615368,0.66609171,83.06,83.01,0.69130536]
[1773041617283,12.03963447,83.059,83.012,0.69130536]
[1773041617485,0.66606415,83.071,83.012,0.69130536]
[1773041617662,12.70395944,83.071,83.012,0.69130536]
[1773041618280,0.66605061,83.089,83.015,0.69130536]
[1773041618466,0.66605061,83.087,83.016,0.69130536]
[1773041618668,0.66605061,83.087,83.017,0.69130536]
[1773041618872,0.66605061,83.087,83.018,18.07749848]
[1773041619075,0.66605061,83.087,83.019,0.69130536]
[1773041619275,30.08675979,83.094,83.02,102.38496746]
[1773041619480,12.69987637,83.099,83.02,102.38496746]
[1773041619481,12.03383915,83.099,83.024,0.69130536]
[1773041619660,12.03383915,83.099,83.026,0.69130536]
[1773041619856,12.03383915,83.099,83.031,0.69130536]
[1773041620073,12.03383915,83.099,83.033,0.69130536]
[1773041620277,12.03383915,83.099,83.035,0.69130536]
[1773041620462,0.66602398,83.098,83.037,0.69130536]
[1773041620663,0.66602398,83.098,83.039,0.69130536]
[1773041620881,0.66602398,83.098,83.041,0.69130536]
[1773041621680,0.6660109,83.096,83.043,0.69130536]
[1773041622979,0.66598518,83.094,83.045,0.69130536]
[1773041624665,0.66596006,83.092,83.038,0.69130536]
[1773041624870,4.82477569,83.093,83.039,12.04253423]
[1773041624871,0.66596006,83.084,83.039,12.04253423]
[1773041625069,0.66596006,83.084,83.039,12.73383959]
[1773041625289,0.66596006,83.084,83.04,0.69130536]
[1773041626790,12.03615661,83.083,83.041,12.04224419]
[1773041627093,0.6659355,83.082,83.042,0.69130536]
[1773041629497,0.66591151,83.08,83.044,0.69130536]
[1773041632080,42.12756224,83.081,83.044,0.69130536]
[1773041632081,0.66587654,83.078,83.044,0.69130536]
[1773041632678,0.66587654,83.078,83.029,0.69130536]
[1773041633791,0.66587654,83.078,83.033,0.69130536]
[1773041634993,0.66584276,83.076,83.035,0.69130536]
[1773041637986,0.66581014,83.074,83.037,0.69130536]
[1773041638491,12.03731567,83.075,83.037,0.69130536]
[1773041638678,12.70312581,83.075,83.037,0.69130536]
[1773041639597,12.03731567,83.075,83.037,0.69130536]
[1773041640198,12.0365468,83.081,83.039,0.69130536]
[1773041640508,12.0365468,83.081,83.038,42.14937738]
[1773041640509,60.15895693,83.114,83.042,0.69130536]
[1773041640510,12.03167746,83.114,83.042,0.69130536]
[1773041640811,12.33847289,83.15,83.04,34.5]
[1773041640812,0.89852918,83.13,83.044,0.69130536]
[1773041641099,0.89852918,83.13,83.043,21.7713325]
[1773041641100,0.69852918,83.128,83.1,0.69130536]
[1773041641399,0.69852918,83.128,83.048,3.69383402]
[1773041642277,0.69852918,83.126,83.053,3.69383402]
[1773041642484,0.69852918,83.126,83.054,1.20403592]
[1773041642994,0.2,83.13,83.055,18.07749848]
[1773041643202,0.2,83.13,83.056,0.66303091]
[1773041643780,12.02949632,83.129,83.056,0.66303091]
[1773041643991,12.70890783,83.129,83.056,0.66303091]
[1773041644803,0.67941151,83.128,83.061,0.66303091]
[1773041646581,12.02949632,83.129,83.061,0.66303091]
[1773041646899,0.2,83.13,83.061,0.66303091]
[1773041647102,0.2,83.13,83.066,0.66303091]
[1773041647278,0.2,83.13,83.068,0.66303091]
[1773041647480,0.2,83.13,83.073,0.66303091]
[1773041647676,0.67941151,83.129,83.073,0.66303091]
[1773041648790,0.2,83.13,83.075,0.66303091]
[1773041649102,0.2,83.13,83.079,0.66303091]
[1773041649399,0.2,83.13,83.082,0.6786093]
[1773041649899,0.2,83.13,83.084,0.6786093]
[1773041650103,0.2,83.13,83.086,0.6786093]
[1773041650292,0.2,83.13,83.085,35.70358668]
[1773041650293,0.2,83.13,83.088,0.6786093]
[1773041650605,0.2,83.13,83.09,0.6786093]
[1773041650781,0.2,83.13,83.092,0.6786093]
[1773041651701,0.2,83.13,83.093,42.12147833]
[1773041651881,1e-08,83.13,83.095,0.6786093]
[1773041654087,1e-08,83.13,83.097,0.6786093]
[1773041654296,0.1,83.15,83.098,0.6786093]
[1773041654715,0.1,83.15,83.1,0.6786093]
[1773041654894,0.66758812,83.143,83.1,0.6786093]
[1773041656906,42.09564129,83.144,83.101,12.03354953]
[1773041657097,0.66758812,83.149,83.102,0.6786093]
[1773041660012,0.1,83.15,83.104,0.6786093]
[1773041660201,0.76758812,83.15,83.104,0.6786093]
[1773041662014,0.66758812,83.149,83.106,0.6786093]
[1773041663497,12.02674748,83.148,83.107,12.03268076]
[1773041663698,0.66758812,83.147,83.108,0.6786093]
[1773041665006,0.66758812,83.145,83.109,12.71100049]
[1773041665516,0.66758812,83.145,83.11,0.6786093]
[1773041668008,0.66758812,83.145,83.112,0.6786093]
[1773041670499,0.66758812,83.145,83.114,0.6786093]
[1773041671317,0.76758812,83.15,83.114,0.6786093]
[1773041672498,0.1,83.15,83.116,0.6786093]
[1773041674924,0.1,83.15,83.118,0.64538101]
[1773041675430,0.1,83.15,83.117,42.10931578]
[1773041675431,0.62308633,83.149,83.117,12.03123308]
[1773041676023,0.62308633,83.149,83.117,12.67661409]
[1773041676226,0.62308633,83.149,83.118,0.64538101]
[1773041677101,0.62308633,83.147,83.109,0.64538101]
[1773041677306,0.72308633,83.15,83.109,0.64538101]
[1773041679015,0.72308633,83.15,83.111,0.64538101]
[1773041680430,0.62308633,83.149,83.11,42.11286247]
[1773041680729,0.62308633,83.149,83.11,12.03224642]
[1773041681436,0.62308633,83.147,83.089,0.64538101]
[1773041681610,0.62308633,83.147,82.997,48.19446282]
[1773041681611,0.62308633,83.144,83.058,0.64538101]
[1773041681808,0.62308633,83.144,83.06,3.69383402]
[1773041682026,0.62308633,83.144,83.061,0.64538101]
[1773041682832,102.22735362,83.148,83.061,0.64538101]
[1773041682833,0.62308633,83.134,83.061,0.64538101]
[1773041683534,0.62308633,83.132,83.063,0.64538101]
[1773041687033,0.62308633,83.13,83.066,0.64538101]
[1773041689152,0.62308633,83.137,83.073,0.64538101]
[1773041689534,0.62308633,83.149,83.073,0.64538101]
[1773041689843,12.02660284,83.149,83.073,0.64538101]
[1773041690023,0.62308633,83.148,83.073,0.64538101]
[1773041690223,0.62308633,83.148,83.075,0.64538101]
[1773041690420,0.62308633,83.148,83.077,0.64538101]
[1773041691540,0.62308633,83.146,83.083,0.64538101]
[1773041693031,12.64917255,83.153,83.085,0.64538101]
[1773041693223,12.64917255,83.153,83.087,0.64538101]
[1773041693526,12.02608622,83.153,83.094,0.64538101]
[1773041693727,12.02608622,83.153,83.096,0.64538101]
[1773041694545,12.02608622,83.153,83.066,9.61292862]
[1773041694546,1.20354323,83.149,83.066,9.61292862]
[1773041694744,1.20354323,83.149,82.939,47.35810071]
[1773041694745,4.82477569,83.145,83.023,30.11197455]
[1773041694946,5.49787375,83.043,83.024,0.68246077]
[1773041695132,16.57232825,83.068,83.024,0.68246077]
[1773041695333,24.68031962,83.076,83.024,0.68246077]
[1773041695532,4.82477569,83.133,83.026,0.68246077]
[1773041695850,4.82477569,83.128,83.026,0.68246077]
[1773041696150,4.82477569,83.123,83.028,0.68246077]
[1773041696350,3.69383402,83.119,83.028,0.68246077]
[1773041696653,1.20354323,83.118,83.03,0.68246077]
[1773041697444,4.82477569,83.13,83.03,0.68246077]
[1773041697637,3.69383402,83.126,83.035,0.68246077]
[1773041697837,1.20354323,83.125,83.035,0.68246077]
[1773041701453,3.69383402,83.121,83.037,0.68246077]
[1773041701782,1.20354323,83.12,83.037,0.68246077]
[1773041702553,3.69383402,83.116,83.039,0.68246077]
[1773041702760,1.20354323,83.115,83.039,0.68246077]
[1773041704646,42.11083571,83.114,83.041,0.68442075]
[1773041704953,42.11083571,83.114,83.04,42.14836223]
[1773041704954,1.20354323,83.113,83.044,0.68442075]
[1773041706758,1.20354323,83.113,83.043,3.69383402]
[1773041706759,12.03195687,83.112,83.046,0.68442075]
[1773041707057,13.23217136,83.135,83.057,3.69383402]
[1773041707256,13.23217136,83.135,83.059,0.68442075]
[1773041707840,0.02139195,83.134,83.059,0.68442075]
[1773041708039,1.22493518,83.134,83.059,0.68442075]
[1773041708744,0.02139195,83.134,83.059,0.68442075]
[1773041709362,13.23217136,83.135,83.064,0.68442075]
[1773041709574,1.20354323,83.148,83.071,3.69383402]
[1773041709864,1.20354323,83.148,83.063,3.69383402]
[1773041709865,12.02455801,83.164,83.088,0.68442075]
[1773041710056,12.38338329,83.16,83.088,0.68442075]
[1773041710746,12.38338329,83.16,83.09,0.68442075]
[1773041711057,12.38338329,83.16,83.095,0.68442075]
[1773041711263,0.02818804,83.183,83.108,0.68442075]
[1773041711561,12.02226523,83.179,83.108,0.68442075]
[1773041711739,0.03040156,83.219,83.13,4.82477569]
[1773041711942,12.01754663,83.212,83.136,0.68442075]
[1773041712147,0.03040156,83.254,83.14,3.69383402]
[1773041712340,47.98709141,83.356,83.151,4.82477569]
[1773041712341,0.6808097,83.266,83.151,4.82477569]
[1773041712559,0.6808097,83.266,83.16,0.68442075]
[1773041712742,0.6808097,83.266,83.189,0.68442075]
[1773041712948,0.6808097,83.265,83.202,0.68442075]
[1773041715056,0.6808097,83.325,83.211,4.82477569]
[1773041715254,0.6808097,83.325,83.226,0.68442075]
[1773041715471,0.6808097,83.322,83.226,0.68442075]
[1773041715680,0.6808097,83.317,83.226,0.68442075]
[1773041716353,0.6808097,83.317,83.206,3.69383402]
[1773041716354,0.6808097,83.317,83.239,0.68442075]
[1773041717191,0.6808097,83.315,83.241,0.68442075]
[1773041717485,0.6808097,83.315,83.228,12.01506683]
[1773041717486,0.6808097,83.307,83.228,12.01506683]
[1773041717656,0.6808097,83.307,83.229,0.68442075]
[1773041719270,13.89948954,83.329,83.221,12.01619783]
[1773041719271,0.6808097,83.294,83.221,12.01619783]
[1773041719480,0.6808097,83.294,83.221,12.70061858]
[1773041719785,0.6808097,83.294,83.221,0.68442075]
[1773041720484,0.6808097,83.294,83.219,12.0163525]
[1773041720485,0.6808097,83.289,83.201,0.68442075]
[1773041720662,0.6808097,83.275,83.204,12.01857528]
[1773041720863,0.6808097,83.275,83.201,0.68442075]
[1773041721569,0.68307758,83.266,83.201,0.68442075]
[1773041721874,0.68307758,83.245,83.174,74.64763198]
[1773041722662,0.68307758,83.236,83.174,74.64763198]
[1773041723883,0.68307758,83.223,83.174,74.64763198]
[1773041724180,0.58173032,83.253,83.175,0.69462309]
[1773041724371,0.58173032,83.253,83.178,0.69462309]
[1773041724767,0.59576364,83.25,83.178,0.69462309]
[1773041725376,0.59576364,83.25,83.178,0.12337919]
[1773041725878,0.68307758,83.245,83.178,0.12337919]
[1773041726788,0.68307758,83.245,83.174,16.12861557]
[1773041727481,0.68307758,83.245,83.175,0.69462309]
[1773041727784,3.69383402,83.241,83.177,0.69462309]
[1773041728101,0.68307758,83.24,83.177,0.69462309]
[1773041729387,0.68307758,83.235,83.174,4.10568999]
[1773041730162,0.68307758,83.23,83.174,4.10568999]
[1773041730585,0.68307758,83.223,83.174,4.10568999]
[1773041732390,0.68307758,83.218,83.174,4.10568999]
[1773041734069,0.68307758,83.218,83.175,0.79779672]
[1773041734273,0.68307758,83.218,83.177,12.02255431]
[1773041734478,12.01605344,83.222,83.178,0.79779672]
[1773041734994,0.75418526,83.221,83.178,0.79779672]
[1773041735176,0.75418526,83.221,83.174,4.10568999]
[1773041735572,0.75418526,83.221,83.176,0.79779672]
[1773041736408,0.75418526,83.219,83.176,0.79779672]
[1773041738204,0.75418526,83.219,83.178,0.79779672]
[1773041739696,0.75418526,83.217,83.178,0.79779672]
[1773041740007,0.75418526,83.214,83.174,4.10568999]
[1773041741002,0.75418526,83.214,83.144,0.79779672]
[1773041741185,0.75418526,83.214,83.145,0.79779672]
[1773041741996,3.69383402,83.21,83.147,0.79779672]
[1773041742186,0.75418526,83.209,83.147,0.79779672]
[1773041744184,0.75418526,83.204,83.149,0.79779672]
[1773041744592,3.69383402,83.2,83.149,0.79779672]
[1773041744904,0.75418526,83.193,83.149,0.79779672]
[1773041746500,0.75418526,83.191,83.149,0.79779672]
[1773041746702,0.75418526,83.188,83.137,0.79779672]
[1773041747904,0.75418526,83.183,83.129,0.79779672]
[1773041748203,3.69383402,83.18,83.119,0.79779672]
[1773041748510,3.69383402,83.18,83.112,12.0319084]
[1773041748511,0.75418526,83.173,83.112,12.0319084]
[1773041748699,0.75418526,83.173,83.112,12.82970512]
[1773041748893,0.75418526,83.173,83.113,0.79779672]
[1773041749093,4.82477569,83.167,83.113,0.79779672]
[1773041749408,0.75418526,83.163,83.104,0.79779672]
[1773041749888,3.69383402,83.147,83.087,0.79779672]
[1773041750091,166.1,83.162,83.02,9.39282357]
[1773041750092,5.57896095,83.146,83.079,0.79779672]
[1773041750411,3.69383402,83.15,83.055,30.10043782]
[1773041750412,0.75418526,83.135,83.081,0.79779672]
[1773041750790,0.75418526,83.135,83.082,0.79779672]
[1773041751908,0.75418526,83.13,83.084,0.79779672]
[1773041752994,12.02877282,83.134,83.084,0.79779672]
[1773041753704,12.02794932,83.14,83.084,0.79779672]
[1773041754010,12.02727398,83.145,83.086,0.79779672]
[1773041754205,0.75418526,83.144,83.086,0.79779672]
[1773041754589,0.75418526,83.144,83.085,12.03586688]
[1773041754791,0.75418526,83.144,83.086,0.79779672]
[1773041755212,0.75418526,83.14,83.081,0.79779672]
[1773041755997,0.75418526,83.135,83.083,0.79779672]
[1773041756406,0.75418526,83.135,83.08,0.2]
[1773041756407,0.75418526,83.124,83.08,0.2]
[1773041758001,0.75418526,83.119,83.08,0.2]
[1773041758688,42.10627624,83.123,83.081,0.79779672]
[1773041758891,0.75418526,83.166,83.082,0.79779672]
[1773041759091,30.05999975,83.167,83.082,0.79779672]
[1773041759092,0.75418526,83.161,83.082,0.79779672]
[1773041759614,0.75418526,83.161,83.084,0.79779672]
[1773041760206,0.75418526,83.156,83.086,0.79779672]
[1773041760511,42.08754208,83.16,83.086,0.79779672]
[1773041760512,12.02501202,83.16,83.086,0.79779672]
[1773041761004,0.75418526,83.159,83.086,0.79779672]
[1773041761395,0.75418526,83.156,83.086,0.79779672]
[1773041762308,0.75418526,83.154,83.088,0.79779672]
[1773041763816,12.02602431,83.153,83.09,0.90750068]
[1773041764312,61.6,83.152,83.09,0.90750068]
[1773041764692,7.45593945,83.165,83.093,0.90750068]
[1773041765313,7.45593945,83.165,83.095,0.90750068]
[1773041765514,7.45593945,83.165,83.097,0.90750068]
[1773041765916,0.91252228,83.163,83.102,0.90750068]
[1773041768421,42.08551776,83.164,83.098,102.28886374]
[1773041768422,0.91252228,83.161,83.104,0.90750068]
[1773041770020,61.6,83.16,83.104,0.90750068]
[1773041770217,0.91252228,83.159,83.104,0.90750068]
[1773041770927,0.91252228,83.157,83.106,0.90750068]
[1773041771830,61.6,83.16,83.106,0.90750068]
[1773041772009,7.45593945,83.165,83.109,0.90750068]
[1773041772010,1e-08,83.165,83.109,0.90750068]
[1773041772918,1e-08,83.165,83.114,0.90750068]
[1773041774045,0.91252228,83.164,83.114,0.90750068]
[1773041774844,1e-08,83.165,83.115,43.01782973]
[1773041774845,0.91252228,83.162,83.115,43.01782973]
[1773041775055,0.91252228,83.162,83.115,42.11032905]
[1773041777037,0.91252228,83.16,83.115,30.07880647]
[1773041777356,0.91252228,83.16,83.116,0.90750068]
[1773041780553,0.91252228,83.16,83.117,42.10931578]
[1773041780856,61.6,83.164,83.118,0.90750068]
[1773041781149,0.91252228,83.163,83.118,0.90750068]
[1773041782056,61.6,83.162,83.119,42.10830254]
[1773041782258,0.91252228,83.161,83.12,0.90750068]
[1773041782550,0.91252228,83.16,83.12,0.90750068]
[1773041783849,55.53604623,83.162,83.119,42.10830254]
[1773041784153,55.53604623,83.162,83.12,0.90750068]
[1773041784955,55.53604623,83.162,83.122,0.90750068]
[1773041788133,1e-08,83.165,83.124,0.90750068]
[1773041788459,62.51252228,83.162,83.124,0.90750068]
[1773041789156,61.6,83.162,83.124,0.90750068]
[1773041793755,0.91951216,83.161,83.126,0.93473831]
[1773041794054,27.6,83.16,83.126,0.93473831]
[1773041794253,0.91951216,83.159,83.126,0.93473831]
[1773041796144,0.91951216,83.159,83.128,0.93473831]
[1773041796661,27.6,83.16,83.128,0.93473831]
[1773041796963,0.91951216,83.159,83.128,0.93473831]
[1773041797264,27.6,83.158,83.128,0.93473831]
[1773041797744,28.51951216,83.158,83.128,0.93473831]
[1773041799062,1e-08,83.165,83.13,0.93473831]
[1773041801146,1e-08,83.165,83.132,0.93473831]
[1773041802448,1e-08,83.165,83.134,0.93473831]
[1773041802861,0.20716508,83.209,83.134,0.93473831]
[1773041803062,0.20716508,83.216,83.14,0.93473831]
[1773041804661,0.20716508,83.216,83.136,102.2421093]
[1773041804662,0.21316116,83.213,83.144,0.93473831]
[1773041805248,0.21316116,83.211,83.146,0.93473831]